Workbook

Sheet 支出
A1: 附表2
A2: 新兴县2017年一般公共预算收支调整情况表之二
F4: 单位：万元
A5: 项目 | B5: 2017年安排数 | C5: 调整数 | D5: 与年初安排对比 | F5: 说明
D6: 增、减额 | E6: 增、减%
A7: 一、一般公共服务支出 | B7: 26814 | C7: 103605 | D7: =C7-B7 -> 76791 | E7: =D7/B7*100 -> 286.3839785
A8: 二、国防支出 | B8: 330 | C8: 393 | D8: 63 | E8: 19.09090909
A9: 三、公共安全支出 | B9: 9771 | C9: 14487 | D9: 4716 | E9: 48.26527479
A10: 四、教育支出 | B10: 54962 | C10: 70668 | D10: 15706 | E10: 28.57610713
A11: 五、科学技术支出 | B11: 628 | C11: 3073 | D11: 2445 | E11: 389.3312102
A12: 六、文化体育与传媒支出 | B12: 1254 | C12: 8315 | D12: 7061 | E12: 563.0781499
A13: 七、社会保障和就业支出 | B13: 54897 | C13: 54631 | D13: -266 | E13: -0.484543782
A14: 八、医疗卫生与计划生育支出 | B14: 32118 | C14: 49391 | D14: 17273 | E14: 53.77981194
A15: 九、节能环保支出 | B15: 1177 | C15: 3871 | D15: 2694 | E15: 228.8870008
A16: 十、城乡社区支出 | B16: 2979 | C16: 28512 | D16: 25533 | E16: 857.0996979
A17: 十一、农林水支出 | B17: 23597 | C17: 41411 | D17: 17814 | E17: 75.49264737
A18: 十二、交通运输支出 | B18: 3445 | C18: 28134 | D18: 24689 | E18: 716.6618287
A19: 十三、资源勘探信息等支出 | B19: 476 | C19: 3648 | D19: 3172 | E19: 666.3865546
A20: 十四、金融支出 | D20: 0
A21: 十五、商业服务业等支出 | B21: 877 | C21: 3011 | D21: 2134 | E21: =D21/B21*100 -> 243.3295325
A22: 十六、国土资源气象等事务 | B22: 1887 | C22: 4959 | D22: 3072 | E22: 162.7980922
A23: 十七、住房保障支出 | B23: 32635 | C23: 9188 | D23: -23447 | E23: -71.84617742
A24: 十八、粮油物资储备支出 | B24: 1126 | C24: 1048 | D24: -78 | E24: -6.927175844
A25: 十九、债务付息支出 | B25: 4481 | C25: 3709 | D25: -772 | E25: -17.22829726
A26: 二十、其他支出 | B26: 28283 | C26: 11753 | D26: -16530 | E26: -58.4450023
A27: 二十一、债务发行费用支出 | C27: 59
A28: 一般公共预算支出合计 | B28: =SUM(B7:B26) -> 281737 | C28: =SUM(C7:C27) -> 443866 | D28: =C28-B28 -> 162129 | E28: 57.54622219
A29: 上解支出 | B29: 4736 | C29: 4256 | D29: =C29-B29 -> -480 | E29: -10.13513514
A30: 调出资金 | C30: 0 | D30: =C30-B30 -> 0
A31: 债务还本支出 | B31: 500 | C31: 11314 | D31: =C31-B31 -> 10814 | E31: =D31/B31*100 -> 2162.8
A32: 支出总计 | B32: =SUM(B28:B31) -> 286973 | C32: =SUM(C28:C31) -> 459436 | D32: =SUM(D28:D31) -> 172463 | E32: =D32/B32*100 -> 60.09729138
